[Event "Titled Tuesday Blitz November 9 2021"]
[White "Bologan, Victor"]
[Black "Ahmadzada, Ahmad"]
[WhiteFideId "13900048"]
[BlackFideId "13413007"]
[WhiteElo "2472"]
[BlackElo "2226"]
[Result "0-1"]
[Round "03"]
[TimeControl "180+1"]
[Date "2021.11.09"]
[WhiteClock "0:00:20"]
[BlackClock "0:00:09"]

1. e4 {[%clk 0:03:00]}  e5 {[%clk 0:02:57]} 2. Nf3 {[%clk 0:02:59]}  Nc6 {[%clk 0:02:58]} 3. Bc4 {[%clk 0:02:58]}  Bc5 {[%clk 0:02:57]} 4. c3 {[%clk 0:02:57]}  Nf6 {[%clk 0:02:57]} 5. d3 {[%clk 0:02:58]}  d6 {[%clk 0:02:57]} 6. Nbd2 {[%clk 0:02:56]}  O-O {[%clk 0:02:57]} 7. h3 {[%clk 0:02:55]}  a6 {[%clk 0:02:57]} 8. Bb3 {[%clk 0:02:55]}  Ba7 {[%clk 0:02:55]} 9. Nf1 {[%clk 0:02:56]}  h6 {[%clk 0:02:50]} 10. g4 {[%clk 0:02:55]}  d5 {[%clk 0:02:42]} 11. Qe2 {[%clk 0:02:42]}  dxe4 {[%clk 0:02:14]} 12. dxe4 {[%clk 0:02:41]}  Na5 {[%clk 0:01:58]} 13. Ng3 {[%clk 0:02:37]}  Nxb3 {[%clk 0:01:54]} 14. axb3 {[%clk 0:02:36]}  Nd7 {[%clk 0:01:55]} 15. b4 {[%clk 0:02:28]}  Nb6 {[%clk 0:01:15]} 16. Be3 {[%clk 0:02:13]}  Be6 {[%clk 0:01:09]} 17. Rd1 {[%clk 0:02:01]}  Qe8 {[%clk 0:00:46]} 18. Bc5 {[%clk 0:01:23]}  Bc4 {[%clk 0:00:46]} 19. Qe3 {[%clk 0:01:23]}  Bb3 {[%clk 0:00:20]} 20. Bxf8 {[%clk 0:01:09]}  Nc4 {[%clk 0:00:19]} 21. Qe2 {[%clk 0:01:08]}  Bxd1 {[%clk 0:00:18]} 22. Qxd1 {[%clk 0:01:05]}  Kxf8 {[%clk 0:00:17]} 23. Qe2 {[%clk 0:01:00]}  Qe6 {[%clk 0:00:16]} 24. O-O {[%clk 0:00:57]}  Rd8 {[%clk 0:00:15]} 25. Kg2 {[%clk 0:00:54]}  Nb6 {[%clk 0:00:15]} 26. Rd1 {[%clk 0:00:52]}  Rd6 {[%clk 0:00:14]} 27. Nf5 {[%clk 0:00:51]}  Rd7 {[%clk 0:00:14]} 28. Rxd7 {[%clk 0:00:42]}  Nxd7 {[%clk 0:00:14]} 29. b5 {[%clk 0:00:41]}  g6 {[%clk 0:00:13]} 30. Nxh6 {[%clk 0:00:38]}  Kg7 {[%clk 0:00:14]} 31. Ng5 {[%clk 0:00:34]}  Qf6 {[%clk 0:00:11]} 32. Nhxf7 {[%clk 0:00:33]}  Nc5 {[%clk 0:00:10]} 33. bxa6 {[%clk 0:00:26]}  Nd3 {[%clk 0:00:10]} 34. Qf3 {[%clk 0:00:22]}  Ne1+ {[%clk 0:00:09]} 35. Kf1 {[%clk 0:00:21]}  Nxf3 {[%clk 0:00:10]} 36. Nxf3 {[%clk 0:00:20]}  Qxf3 {[%clk 0:00:09]} 0-1


[Site "https://www.chess.com"]

[Event "Titled Tuesday Blitz November 9 2021"]
[White "Bortnyk, Olexandr"]
[Black "Rostovtsev, Dmitry"]
[WhiteFideId "14120828"]
[BlackFideId "34278320"]
[WhiteElo "2723"]
[BlackElo "2253"]
[Result "1-0"]
[Round "03"]
[TimeControl "180+1"]
[Date "2021.11.09"]
[WhiteClock "0:01:19"]
[BlackClock "0:00:15"]

1. e4 {[%clk 0:03:00]}  e5 {[%clk 0:02:57]} 2. Nf3 {[%clk 0:03:00]}  Nc6 {[%clk 0:02:58]} 3. Bb5 {[%clk 0:03:00]}  a6 {[%clk 0:02:58]} 4. Ba4 {[%clk 0:03:00]}  Nf6 {[%clk 0:02:58]} 5. Nc3 {[%clk 0:02:59]}  b5 {[%clk 0:02:42]} 6. Bb3 {[%clk 0:02:59]}  d6 {[%clk 0:02:39]} 7. a4 {[%clk 0:02:57]}  b4 {[%clk 0:02:35]} 8. Nd5 {[%clk 0:02:57]}  Be7 {[%clk 0:02:26]} 9. d4 {[%clk 0:02:55]}  Bg4 {[%clk 0:02:22]} 10. dxe5 {[%clk 0:02:48]}  Nxe5 {[%clk 0:02:20]} 11. Nxe5 {[%clk 0:02:47]}  Bxd1 {[%clk 0:01:55]} 12. Nc6 {[%clk 0:02:19]}  Qd7 {[%clk 0:01:38]} 13. Ncxe7 {[%clk 0:02:16]}  Nxd5 {[%clk 0:01:29]} 14. Nxd5 {[%clk 0:02:10]}  Bg4 {[%clk 0:01:18]} 15. a5 {[%clk 0:02:04]}  O-O {[%clk 0:01:16]} 16. O-O {[%clk 0:02:05]}  Be6 {[%clk 0:01:12]} 17. Ba4 {[%clk 0:02:05]}  Qd8 {[%clk 0:01:11]} 18. Nxb4 {[%clk 0:02:05]}  Qh4 {[%clk 0:01:09]} 19. Bc6 {[%clk 0:02:01]}  Rab8 {[%clk 0:01:08]} 20. Nxa6 {[%clk 0:02:02]}  Bc4 {[%clk 0:01:07]} 21. Nxb8 {[%clk 0:02:01]}  Bxf1 {[%clk 0:01:06]} 22. Kxf1 {[%clk 0:02:02]}  Qh5 {[%clk 0:00:42]} 23. Be3 {[%clk 0:01:48]}  Qxh2 {[%clk 0:00:42]} 24. Ke2 {[%clk 0:01:47]}  Qh5+ {[%clk 0:00:35]} 25. Kd2 {[%clk 0:01:38]}  Rxb8 {[%clk 0:00:35]} 26. a6 {[%clk 0:01:38]}  h6 {[%clk 0:00:29]} 27. a7 {[%clk 0:01:34]}  Rd8 {[%clk 0:00:30]} 28. b4 {[%clk 0:01:26]}  Qg6 {[%clk 0:00:25]} 29. Ra5 {[%clk 0:01:20]}  Qxg2 {[%clk 0:00:23]} 30. Rb5 {[%clk 0:01:20]}  d5 {[%clk 0:00:15]} 31. Rb8 {[%clk 0:01:19]} 1-0


[Site "https://www.chess.com"]

[Event "Titled Tuesday Blitz November 9 2021"]
[White "Cunha, Lucas Aguiar"]
[Black "Maghsoodloo, Parham"]
[WhiteFideId "2125404"]
[BlackFideId "12539929"]
[WhiteElo "2361"]
[BlackElo "2601"]
[Result "1-0"]
[Round "03"]
[TimeControl "180+1"]
[Date "2021.11.09"]
[WhiteClock "0:00:14"]
[BlackClock "0:00:13"]

1. e4 {[%clk 0:02:58]}  c5 {[%clk 0:02:57]} 2. Nf3 {[%clk 0:02:58]}  d6 {[%clk 0:02:45]} 3. d4 {[%clk 0:02:58]}  cxd4 {[%clk 0:02:40]} 4. Qxd4 {[%clk 0:02:57]}  Nc6 {[%clk 0:02:33]} 5. Qe3 {[%clk 0:02:57]}  g6 {[%clk 0:02:33]} 6. Be2 {[%clk 0:02:56]}  Bg7 {[%clk 0:02:31]} 7. O-O {[%clk 0:02:55]}  Nf6 {[%clk 0:02:31]} 8. Rd1 {[%clk 0:02:54]}  O-O {[%clk 0:02:30]} 9. Nc3 {[%clk 0:02:53]}  Be6 {[%clk 0:02:29]} 10. Nd5 {[%clk 0:02:50]}  Rc8 {[%clk 0:02:20]} 11. c3 {[%clk 0:02:46]}  a6 {[%clk 0:02:18]} 12. Qf4 {[%clk 0:02:46]}  Bxd5 {[%clk 0:02:06]} 13. exd5 {[%clk 0:02:45]}  Nb8 {[%clk 0:02:00]} 14. Qh4 {[%clk 0:02:43]}  Nbd7 {[%clk 0:01:59]} 15. Bh6 {[%clk 0:02:35]}  Qb6 {[%clk 0:01:59]} 16. Rab1 {[%clk 0:02:29]}  Rc5 {[%clk 0:01:58]} 17. Ng5 {[%clk 0:02:18]}  Rfc8 {[%clk 0:01:53]} 18. c4 {[%clk 0:01:57]}  Qd8 {[%clk 0:01:52]} 19. b3 {[%clk 0:01:48]}  Qf8 {[%clk 0:01:52]} 20. Bxg7 {[%clk 0:01:46]}  Qxg7 {[%clk 0:01:52]} 21. a4 {[%clk 0:01:36]}  h6 {[%clk 0:01:28]} 22. Nf3 {[%clk 0:01:32]}  g5 {[%clk 0:01:25]} 23. Qd4 {[%clk 0:01:30]}  g4 {[%clk 0:01:15]} 24. Ne1 {[%clk 0:01:24]}  Ne5 {[%clk 0:01:13]} 25. Nc2 {[%clk 0:01:13]}  b5 {[%clk 0:01:10]} 26. Ne3 {[%clk 0:01:13]}  bxc4 {[%clk 0:01:04]} 27. bxc4 {[%clk 0:01:14]}  Qg5 {[%clk 0:01:03]} 28. Rb7 {[%clk 0:01:10]}  Kf8 {[%clk 0:00:53]} 29. Rdb1 {[%clk 0:01:06]}  h5 {[%clk 0:00:50]} 30. Ra7 {[%clk 0:01:00]}  R5c7 {[%clk 0:00:38]} 31. Rxc7 {[%clk 0:00:50]}  Rxc7 {[%clk 0:00:39]} 32. Qb6 {[%clk 0:00:51]}  Rc5 {[%clk 0:00:33]} 33. Qd8+ {[%clk 0:00:46]}  Kg7 {[%clk 0:00:31]} 34. Rb8 {[%clk 0:00:38]}  Nf3+ {[%clk 0:00:20]} 35. Kh1 {[%clk 0:00:22]}  Ne5 {[%clk 0:00:19]} 36. Qh8+ {[%clk 0:00:21]}  Kg6 {[%clk 0:00:19]} 37. Bd1 {[%clk 0:00:17]}  Rxc4 {[%clk 0:00:17]} 38. Nxc4 {[%clk 0:00:15]}  Qc1 {[%clk 0:00:17]} 39. Ne3 {[%clk 0:00:15]}  Qd2 {[%clk 0:00:15]} 40. h4 {[%clk 0:00:13]}  Nd3 {[%clk 0:00:14]} 41. Bc2 {[%clk 0:00:13]}  g3 {[%clk 0:00:12]} 42. Rg8+ {[%clk 0:00:13]}  Nxg8 {[%clk 0:00:13]} 43. Qxg8+ {[%clk 0:00:14]}  Kf6 {[%clk 0:00:13]} 44. Qg5# {[%clk 0:00:14]} 1-0


[Site "https://www.chess.com"]

[Event "Titled Tuesday Blitz November 9 2021"]
[White "Kovalenko, Igor"]
[Black "Papasimakopoulos, Alexandros"]
[WhiteFideId "14117908"]
[BlackFideId "4244125"]
[WhiteElo "2629"]
[BlackElo "2394"]
[Result "1-0"]
[Round "03"]
[TimeControl "180+1"]
[Date "2021.11.09"]
[WhiteClock "0:01:03"]
[BlackClock "0:00:08"]

1. d4 {[%clk 0:03:00]}  f5 {[%clk 0:02:58]} 2. c4 {[%clk 0:03:00]}  Nf6 {[%clk 0:02:57]} 3. Nc3 {[%clk 0:02:59]}  d6 {[%clk 0:02:57]} 4. Nf3 {[%clk 0:02:57]}  g6 {[%clk 0:02:57]} 5. e3 {[%clk 0:02:57]}  Bg7 {[%clk 0:02:58]} 6. Be2 {[%clk 0:02:57]}  O-O {[%clk 0:02:58]} 7. O-O {[%clk 0:02:58]}  Nc6 {[%clk 0:02:59]} 8. d5 {[%clk 0:02:56]}  Ne5 {[%clk 0:02:59]} 9. Nxe5 {[%clk 0:02:51]}  dxe5 {[%clk 0:02:58]} 10. e4 {[%clk 0:02:51]}  f4 {[%clk 0:02:43]} 11. f3 {[%clk 0:02:49]}  g5 {[%clk 0:02:41]} 12. c5 {[%clk 0:02:46]}  h5 {[%clk 0:02:39]} 13. b4 {[%clk 0:02:44]}  a5 {[%clk 0:02:34]} 14. Ba3 {[%clk 0:02:42]}  axb4 {[%clk 0:02:30]} 15. Bxb4 {[%clk 0:02:43]}  Kh8 {[%clk 0:02:30]} 16. Qb3 {[%clk 0:02:33]}  g4 {[%clk 0:02:29]} 17. Rad1 {[%clk 0:02:28]}  Rg8 {[%clk 0:02:25]} 18. d6 {[%clk 0:02:27]}  exd6 {[%clk 0:02:24]} 19. cxd6 {[%clk 0:02:27]}  c6 {[%clk 0:02:24]} 20. Bc4 {[%clk 0:02:23]}  Rf8 {[%clk 0:02:03]} 21. d7 {[%clk 0:01:56]}  Nxd7 {[%clk 0:01:40]} 22. Bxf8 {[%clk 0:01:56]}  Qxf8 {[%clk 0:01:41]} 23. Rd2 {[%clk 0:01:44]}  b5 {[%clk 0:01:39]} 24. Bf7 {[%clk 0:01:38]}  Nc5 {[%clk 0:01:29]} 25. Qb4 {[%clk 0:01:37]}  gxf3 {[%clk 0:01:21]} 26. Bxh5 {[%clk 0:01:25]}  fxg2 {[%clk 0:01:14]} 27. Rfd1 {[%clk 0:01:25]}  Bh3 {[%clk 0:01:08]} 28. Bf3 {[%clk 0:01:25]}  Ne6 {[%clk 0:01:03]} 29. Qxf8+ {[%clk 0:01:23]}  Bxf8 {[%clk 0:01:01]} 30. Bxg2 {[%clk 0:01:23]}  Bc5+ {[%clk 0:00:58]} 31. Kh1 {[%clk 0:01:23]}  Bxg2+ {[%clk 0:00:49]} 32. Rxg2 {[%clk 0:01:22]}  f3 {[%clk 0:00:42]} 33. Rg6 {[%clk 0:01:17]}  Nf4 {[%clk 0:00:42]} 34. Rxc6 {[%clk 0:01:16]}  Bd4 {[%clk 0:00:39]} 35. Nxb5 {[%clk 0:01:14]}  f2 {[%clk 0:00:21]} 36. Nxd4 {[%clk 0:01:11]}  exd4 {[%clk 0:00:22]} 37. Rf6 {[%clk 0:01:10]}  Nh3 {[%clk 0:00:09]} 38. Rf3 {[%clk 0:01:05]}  Ng5 {[%clk 0:00:08]} 39. Rxf2 {[%clk 0:01:05]}  Nxe4 {[%clk 0:00:09]} 40. Rf4 {[%clk 0:01:05]}  Re8 {[%clk 0:00:09]} 41. Rxd4 {[%clk 0:01:04]}  Nc3 {[%clk 0:00:10]} 42. Rf3 {[%clk 0:01:02]}  Re1+ {[%clk 0:00:07]} 43. Kg2 {[%clk 0:01:02]}  Ne2 {[%clk 0:00:08]} 44. Rh4+ {[%clk 0:01:01]}  Kg7 {[%clk 0:00:07]} 45. Rg4+ {[%clk 0:01:02]}  Kh6 {[%clk 0:00:08]} 46. Rh3# {[%clk 0:01:03]} 1-0


[Site "https://www.chess.com"]

[Event "Titled Tuesday Blitz November 9 2021"]
[White "Manafov, Vugar"]
[Black "Shyaamnikhil P"]
[WhiteFideId "13410814"]
[BlackFideId "5024218"]
[WhiteElo "2277"]
[BlackElo "2300"]
[Result "1-0"]
[Round "03"]
[TimeControl "180+1"]
[Date "2021.11.09"]
[WhiteClock "0:00:19"]
[BlackClock "0:00:02"]

1. d4 {[%clk 0:03:00]}  Nf6 {[%clk 0:02:59]} 2. c4 {[%clk 0:03:00]}  c5 {[%clk 0:02:59]} 3. d5 {[%clk 0:03:00]}  b5 {[%clk 0:02:59]} 4. cxb5 {[%clk 0:03:01]}  a6 {[%clk 0:02:59]} 5. bxa6 {[%clk 0:03:02]}  g6 {[%clk 0:02:58]} 6. Nc3 {[%clk 0:03:03]}  Bxa6 {[%clk 0:02:58]} 7. e4 {[%clk 0:03:03]}  Bxf1 {[%clk 0:02:58]} 8. Kxf1 {[%clk 0:03:04]}  d6 {[%clk 0:02:59]} 9. Nf3 {[%clk 0:03:04]}  Bg7 {[%clk 0:02:59]} 10. g3 {[%clk 0:03:05]}  O-O {[%clk 0:02:59]} 11. Kg2 {[%clk 0:03:05]}  Na6 {[%clk 0:02:58]} 12. Qe2 {[%clk 0:03:05]}  Qb6 {[%clk 0:02:55]} 13. Nd2 {[%clk 0:02:57]}  Nb4 {[%clk 0:02:51]} 14. Nc4 {[%clk 0:02:56]}  Qa6 {[%clk 0:02:44]} 15. Bg5 {[%clk 0:02:50]}  Qb7 {[%clk 0:02:36]} 16. a3 {[%clk 0:02:41]}  Na6 {[%clk 0:02:35]} 17. a4 {[%clk 0:02:28]}  Nb4 {[%clk 0:02:30]} 18. Nb5 {[%clk 0:02:27]}  Ra6 {[%clk 0:02:29]} 19. b3 {[%clk 0:02:26]}  Rfa8 {[%clk 0:02:22]} 20. Rad1 {[%clk 0:02:23]}  h6 {[%clk 0:02:18]} 21. Bxf6 {[%clk 0:02:23]}  Bxf6 {[%clk 0:02:18]} 22. h4 {[%clk 0:02:23]}  Bg7 {[%clk 0:01:44]} 23. f4 {[%clk 0:02:21]}  h5 {[%clk 0:01:37]} 24. Kh2 {[%clk 0:02:18]}  Qd7 {[%clk 0:01:36]} 25. Rd2 {[%clk 0:02:15]}  Rb8 {[%clk 0:01:35]} 26. Ne3 {[%clk 0:01:53]}  Raa8 {[%clk 0:01:28]} 27. g4 {[%clk 0:01:33]}  hxg4 {[%clk 0:01:25]} 28. Qxg4 {[%clk 0:01:34]}  Qxg4 {[%clk 0:01:24]} 29. Nxg4 {[%clk 0:01:34]}  c4 {[%clk 0:01:24]} 30. bxc4 {[%clk 0:01:31]}  Rxa4 {[%clk 0:01:24]} 31. e5 {[%clk 0:01:25]}  dxe5 {[%clk 0:01:17]} 32. fxe5 {[%clk 0:01:13]}  Nxd5 {[%clk 0:01:12]} 33. Rxd5 {[%clk 0:01:11]}  Rxc4 {[%clk 0:01:11]} 34. Ne3 {[%clk 0:01:12]}  Rxh4+ {[%clk 0:01:10]} 35. Kg2 {[%clk 0:01:09]}  Re4 {[%clk 0:01:05]} 36. Kf3 {[%clk 0:01:04]}  Rxe5 {[%clk 0:01:05]} 37. Rxe5 {[%clk 0:01:03]}  Bxe5 {[%clk 0:01:06]} 38. Na3 {[%clk 0:01:04]}  Bg7 {[%clk 0:00:59]} 39. Nac4 {[%clk 0:01:04]}  f5 {[%clk 0:00:57]} 40. Rg1 {[%clk 0:01:00]}  Kf7 {[%clk 0:00:54]} 41. Nd5 {[%clk 0:00:59]}  Rb3+ {[%clk 0:00:53]} 42. Ke2 {[%clk 0:00:58]}  Bf6 {[%clk 0:00:46]} 43. Rh1 {[%clk 0:00:46]}  g5 {[%clk 0:00:40]} 44. Nce3 {[%clk 0:00:42]}  Rb2+ {[%clk 0:00:37]} 45. Kd3 {[%clk 0:00:41]}  e6 {[%clk 0:00:34]} 46. Nc7 {[%clk 0:00:26]}  Rb7 {[%clk 0:00:24]} 47. Na6 {[%clk 0:00:24]}  Be7 {[%clk 0:00:21]} 48. Nc5 {[%clk 0:00:22]}  Rc7 {[%clk 0:00:17]} 49. Nb3 {[%clk 0:00:21]}  Bf6 {[%clk 0:00:16]} 50. Nd2 {[%clk 0:00:18]}  Rc3+ {[%clk 0:00:15]} 51. Ke2 {[%clk 0:00:19]}  g4 {[%clk 0:00:15]} 52. Ndc4 {[%clk 0:00:19]}  f4 {[%clk 0:00:13]} 53. Nd6+ {[%clk 0:00:19]}  Ke7 {[%clk 0:00:12]} 54. Nxg4 {[%clk 0:00:19]}  Kxd6 {[%clk 0:00:10]} 55. Nxf6 {[%clk 0:00:19]}  Ke5 {[%clk 0:00:10]} 56. Ng4+ {[%clk 0:00:20]}  Kf5 {[%clk 0:00:10]} 57. Nf2 {[%clk 0:00:20]}  Rg3 {[%clk 0:00:09]} 58. Rh5+ {[%clk 0:00:20]}  Rg5 {[%clk 0:00:09]} 59. Rh8 {[%clk 0:00:19]}  e5 {[%clk 0:00:08]} 60. Rf8+ {[%clk 0:00:20]}  Ke6 {[%clk 0:00:08]} 61. Ne4 {[%clk 0:00:20]}  Rg1 {[%clk 0:00:06]} 62. Kf2 {[%clk 0:00:16]}  Ra1 {[%clk 0:00:06]} 63. Ng5+ {[%clk 0:00:17]}  Ke7 {[%clk 0:00:05]} 64. Rf7+ {[%clk 0:00:17]}  Kd6 {[%clk 0:00:05]} 65. Kf3 {[%clk 0:00:18]}  Kd5 {[%clk 0:00:05]} 66. Rd7+ {[%clk 0:00:18]}  Kc6 {[%clk 0:00:05]} 67. Rd3 {[%clk 0:00:17]}  Ra4 {[%clk 0:00:04]} 68. Ne4 {[%clk 0:00:16]}  Rd4 {[%clk 0:00:02]} 69. Rc3+ {[%clk 0:00:16]}  Kd5 {[%clk 0:00:03]} 70. Rc5+ {[%clk 0:00:17]}  Ke6 {[%clk 0:00:03]} 71. Rc6+ {[%clk 0:00:18]}  Ke7 {[%clk 0:00:03]} 72. Ng5 {[%clk 0:00:16]}  Ra4 {[%clk 0:00:02]} 73. Re6+ {[%clk 0:00:16]}  Kd7 {[%clk 0:00:02]} 74. Rxe5 {[%clk 0:00:17]}  Ra3+ {[%clk 0:00:02]} 75. Kxf4 {[%clk 0:00:18]}  Ra6 {[%clk 0:00:02]} 76. Ne4 {[%clk 0:00:19]} 1-0


[Site "https://www.chess.com"]

[Event "Titled Tuesday Blitz November 9 2021"]
[White "Moskalenko, Alexander"]
[Black "FGHSMN"]
[WhiteFideId "4155351"]
[WhiteElo "2515"]
[BlackElo "2664"]
[Result "0-1"]
[Round "03"]
[TimeControl "180+1"]
[Date "2021.11.09"]
[WhiteClock "0:01:50"]
[BlackClock "0:00:58"]

1. e4 {[%clk 0:03:00]}  e6 {[%clk 0:02:59]} 2. d4 {[%clk 0:03:00]}  d5 {[%clk 0:02:59]} 3. Nc3 {[%clk 0:02:54]}  Bb4 {[%clk 0:02:58]} 4. e5 {[%clk 0:02:51]}  c5 {[%clk 0:02:56]} 5. a3 {[%clk 0:02:46]}  Bxc3+ {[%clk 0:02:55]} 6. bxc3 {[%clk 0:02:47]}  Ne7 {[%clk 0:02:56]} 7. Qg4 {[%clk 0:02:47]}  Qc7 {[%clk 0:02:55]} 8. Qxg7 {[%clk 0:02:45]}  Rg8 {[%clk 0:02:55]} 9. Qxh7 {[%clk 0:02:45]}  cxd4 {[%clk 0:02:56]} 10. Ne2 {[%clk 0:02:46]}  Nbc6 {[%clk 0:02:55]} 11. f4 {[%clk 0:02:45]}  dxc3 {[%clk 0:02:55]} 12. Qd3 {[%clk 0:02:46]}  d4 {[%clk 0:02:45]} 13. h4 {[%clk 0:02:46]}  Bd7 {[%clk 0:02:41]} 14. h5 {[%clk 0:02:46]}  O-O-O {[%clk 0:02:41]} 15. h6 {[%clk 0:02:46]}  Rg6 {[%clk 0:02:42]} 16. g3 {[%clk 0:02:43]}  Nf5 {[%clk 0:02:34]} 17. h7 {[%clk 0:02:41]}  Rh8 {[%clk 0:02:35]} 18. Bg2 {[%clk 0:02:41]}  Nce7 {[%clk 0:02:33]} 19. Bf3 {[%clk 0:02:33]}  Bc6 {[%clk 0:02:31]} 20. g4 {[%clk 0:02:31]}  Rxg4 {[%clk 0:01:56]} 21. Bxg4 {[%clk 0:02:24]}  Bxh1 {[%clk 0:01:57]} 22. Nxd4 {[%clk 0:02:24]}  Nxd4 {[%clk 0:01:51]} 23. Qxd4 {[%clk 0:02:25]}  Rxh7 {[%clk 0:01:49]} 24. Qxa7 {[%clk 0:02:20]}  Be4 {[%clk 0:01:43]} 25. Be3 {[%clk 0:02:09]}  Rh1+ {[%clk 0:01:38]} 26. Bg1 {[%clk 0:02:10]}  Nc6 {[%clk 0:01:03]} 27. Qe3 {[%clk 0:01:58]}  Qd8 {[%clk 0:01:02]} 28. Rd1 {[%clk 0:01:53]}  Qh4+ {[%clk 0:01:01]} 29. Qf2 {[%clk 0:01:50]}  Rxg1+ {[%clk 0:00:58]} 0-1


[Site "https://www.chess.com"]

[Event "Titled Tuesday Blitz November 9 2021"]
[White "Nakamura, Hikaru"]
[Black "Perez Gormaz, Matias"]
[WhiteFideId "2016192"]
[BlackFideId "3406342"]
[WhiteElo "2884"]
[BlackElo "2352"]
[Result "1-0"]
[Round "03"]
[TimeControl "180+1"]
[Date "2021.11.09"]
[WhiteClock "0:00:12"]
[BlackClock "0:00:02"]

1. Nf3 {[%clk 0:03:00]}  d5 {[%clk 0:02:59]} 2. e3 {[%clk 0:03:00]}  Nf6 {[%clk 0:02:59]} 3. c4 {[%clk 0:03:00]}  e6 {[%clk 0:02:59]} 4. d4 {[%clk 0:02:58]}  a6 {[%clk 0:02:56]} 5. b3 {[%clk 0:02:52]}  b6 {[%clk 0:02:54]} 6. Bb2 {[%clk 0:02:49]}  Bb7 {[%clk 0:02:54]} 7. Nbd2 {[%clk 0:02:48]}  Nbd7 {[%clk 0:02:55]} 8. cxd5 {[%clk 0:02:48]}  exd5 {[%clk 0:02:55]} 9. Bd3 {[%clk 0:02:47]}  Bd6 {[%clk 0:02:55]} 10. Ne5 {[%clk 0:02:48]}  O-O {[%clk 0:02:51]} 11. O-O {[%clk 0:02:47]}  Re8 {[%clk 0:02:49]} 12. f4 {[%clk 0:02:47]}  c5 {[%clk 0:02:38]} 13. Qf3 {[%clk 0:02:40]}  Rc8 {[%clk 0:02:29]} 14. Qh3 {[%clk 0:02:34]}  Nf8 {[%clk 0:02:21]} 15. Rad1 {[%clk 0:02:31]}  b5 {[%clk 0:02:16]} 16. dxc5 {[%clk 0:02:20]}  Bxc5 {[%clk 0:02:15]} 17. Kh1 {[%clk 0:02:20]}  Qb6 {[%clk 0:02:06]} 18. Rde1 {[%clk 0:02:04]}  Qa5 {[%clk 0:01:48]} 19. Re2 {[%clk 0:01:48]}  Qxa2 {[%clk 0:01:37]} 20. Bc3 {[%clk 0:01:37]}  Bb6 {[%clk 0:01:22]} 21. Bb4 {[%clk 0:01:24]}  Ng6 {[%clk 0:01:00]} 22. Bf5 {[%clk 0:00:59]}  Rc7 {[%clk 0:00:51]} 23. Bb1 {[%clk 0:00:52]}  Qb2 {[%clk 0:00:20]} 24. Nd3 {[%clk 0:00:51]}  Qa1 {[%clk 0:00:20]} 25. Ne5 {[%clk 0:00:40]}  Qb2 {[%clk 0:00:17]} 26. Nd3 {[%clk 0:00:39]}  Qa1 {[%clk 0:00:17]} 27. Qg3 {[%clk 0:00:34]}  Ne4 {[%clk 0:00:16]} 28. Nxe4 {[%clk 0:00:27]}  dxe4 {[%clk 0:00:17]} 29. Ne5 {[%clk 0:00:27]}  Nxe5 {[%clk 0:00:16]} 30. Ra2 {[%clk 0:00:25]}  Qxa2 {[%clk 0:00:12]} 31. Bxa2 {[%clk 0:00:26]}  Nd3 {[%clk 0:00:13]} 32. Bd6 {[%clk 0:00:26]}  Rc2 {[%clk 0:00:12]} 33. Bb1 {[%clk 0:00:27]}  Rb2 {[%clk 0:00:12]} 34. f5 {[%clk 0:00:24]}  f6 {[%clk 0:00:12]} 35. Ba3 {[%clk 0:00:23]}  Rxb3 {[%clk 0:00:12]} 36. Ba2 {[%clk 0:00:23]}  Bd5 {[%clk 0:00:11]} 37. Qd6 {[%clk 0:00:16]}  Rxa3 {[%clk 0:00:04]} 38. Bxd5+ {[%clk 0:00:15]}  Kh8 {[%clk 0:00:05]} 39. Qxa3 {[%clk 0:00:16]}  Bxe3 {[%clk 0:00:04]} 40. Qxa6 {[%clk 0:00:13]}  Ne5 {[%clk 0:00:03]} 41. Qxb5 {[%clk 0:00:13]}  Rd8 {[%clk 0:00:03]} 42. Bxe4 {[%clk 0:00:13]}  Bg5 {[%clk 0:00:02]} 43. h3 {[%clk 0:00:13]}  h5 {[%clk 0:00:03]} 44. Qe2 {[%clk 0:00:13]}  h4 {[%clk 0:00:03]} 45. Rd1 {[%clk 0:00:13]}  Rxd1+ {[%clk 0:00:02]} 46. Qxd1 {[%clk 0:00:13]}  Kg8 {[%clk 0:00:02]} 47. Qd8+ {[%clk 0:00:11]}  Kh7 {[%clk 0:00:02]} 48. Bd5 {[%clk 0:00:11]}  g6 {[%clk 0:00:02]} 49. Qg8+ {[%clk 0:00:11]}  Kh6 {[%clk 0:00:02]} 50. Qh8# {[%clk 0:00:12]} 1-0


[Site "https://www.chess.com"]

[Event "Titled Tuesday Blitz November 9 2021"]
[White "Pichot, Alan"]
[Black "Baskin, Robert"]
[WhiteFideId "110973"]
[BlackFideId "24662402"]
[WhiteElo "2600"]
[BlackElo "2488"]
[Result "1-0"]
[Round "03"]
[TimeControl "180+1"]
[Date "2021.11.09"]
[WhiteClock "0:01:07"]
[BlackClock "0:00:03"]

1. e4 {[%clk 0:03:00]}  c5 {[%clk 0:02:59]} 2. Nf3 {[%clk 0:03:00]}  d6 {[%clk 0:03:00]} 3. d4 {[%clk 0:03:00]}  cxd4 {[%clk 0:03:01]} 4. Nxd4 {[%clk 0:03:01]}  Nf6 {[%clk 0:03:01]} 5. Nc3 {[%clk 0:03:02]}  a6 {[%clk 0:03:02]} 6. Bg5 {[%clk 0:03:02]}  Nbd7 {[%clk 0:02:57]} 7. Bc4 {[%clk 0:03:02]}  Qb6 {[%clk 0:02:55]} 8. Bb3 {[%clk 0:03:02]}  e6 {[%clk 0:02:54]} 9. Qd2 {[%clk 0:03:03]}  Be7 {[%clk 0:02:38]} 10. O-O-O {[%clk 0:03:03]}  Nc5 {[%clk 0:02:36]} 11. Rhe1 {[%clk 0:03:03]}  h6 {[%clk 0:02:32]} 12. Bh4 {[%clk 0:03:01]}  Qc7 {[%clk 0:02:31]} 13. f4 {[%clk 0:02:54]}  O-O {[%clk 0:02:04]} 14. e5 {[%clk 0:02:45]}  dxe5 {[%clk 0:02:04]} 15. fxe5 {[%clk 0:02:46]}  Nh7 {[%clk 0:01:58]} 16. Bxe7 {[%clk 0:02:45]}  Qxe7 {[%clk 0:01:59]} 17. Ne4 {[%clk 0:02:45]}  Nxe4 {[%clk 0:01:44]} 18. Rxe4 {[%clk 0:02:46]}  Bd7 {[%clk 0:01:34]} 19. h4 {[%clk 0:02:40]}  Rfd8 {[%clk 0:01:31]} 20. Qf2 {[%clk 0:02:38]}  Be8 {[%clk 0:01:26]} 21. g4 {[%clk 0:02:36]}  b5 {[%clk 0:01:10]} 22. a3 {[%clk 0:02:26]}  a5 {[%clk 0:01:10]} 23. Qe1 {[%clk 0:02:21]}  a4 {[%clk 0:00:55]} 24. Ba2 {[%clk 0:02:21]}  b4 {[%clk 0:00:52]} 25. axb4 {[%clk 0:02:17]}  a3 {[%clk 0:00:53]} 26. b3 {[%clk 0:02:17]}  Rab8 {[%clk 0:00:49]} 27. c3 {[%clk 0:02:18]}  Qc7 {[%clk 0:00:45]} 28. Kb1 {[%clk 0:02:16]}  Bc6 {[%clk 0:00:42]} 29. Rf4 {[%clk 0:02:11]}  Nf8 {[%clk 0:00:40]} 30. h5 {[%clk 0:02:12]}  Nd7 {[%clk 0:00:37]} 31. Nxc6 {[%clk 0:02:06]}  Qxc6 {[%clk 0:00:38]} 32. Rfd4 {[%clk 0:02:06]}  Qc7 {[%clk 0:00:26]} 33. Qd2 {[%clk 0:01:49]}  Qxe5 {[%clk 0:00:16]} 34. Rxd7 {[%clk 0:01:49]}  Rxd7 {[%clk 0:00:16]} 35. Qxd7 {[%clk 0:01:50]}  Qxc3 {[%clk 0:00:17]} 36. Qd4 {[%clk 0:01:50]}  Qf3 {[%clk 0:00:13]} 37. Ka1 {[%clk 0:01:48]}  Rf8 {[%clk 0:00:05]} 38. b5 {[%clk 0:01:42]}  Qe2 {[%clk 0:00:05]} 39. b6 {[%clk 0:01:27]}  e5 {[%clk 0:00:05]} 40. Qd2 {[%clk 0:01:26]}  Qb5 {[%clk 0:00:06]} 41. Qe3 {[%clk 0:01:20]}  e4 {[%clk 0:00:04]} 42. Bb1 {[%clk 0:01:10]}  Qe5+ {[%clk 0:00:04]} 43. Qd4 {[%clk 0:01:10]}  Qh2 {[%clk 0:00:04]} 44. Rd2 {[%clk 0:01:08]}  Qh1 {[%clk 0:00:03]} 45. Qxe4 {[%clk 0:01:08]}  Qc1 {[%clk 0:00:03]} 46. Qh7# {[%clk 0:01:07]} 1-0


[Site "https://www.chess.com"]